[Event "36th Balaton Open A 2018"]
[Site "Balatonlelle"]
[Date "2018.06.12"]
[Round "1.10"]
[White "Gaal, Ede"]
[Black "Farkas, Otto"]
[Result "1-0"]
[ECO "B02"]
[WhiteElo "2141"]
[BlackElo "1609"]
[Annotator "ChessBase"]
[PlyCount "37"]
[EventDate "2018.06.12"]
[EventType "swiss"]
[EventCountry "HUN"]
[SourceTitle "playchess.com"]
[Source "ChessBase"]
[SourceQuality "1"]
[TimeControl "40/5400+30:1800+30"]

1. e4 {[%emt 0:00:07]} Nf6 {[%emt 0:00:36]} 2. e5 {[%emt 0:00:25]} Nd5 {[%emt 0:00:07]} 3. Nf3 {[%emt 0:00:18]} d6 {[%emt 0:00:10]} 4. Nc3 {[%emt 0:00:14]} Nxc3 {[%emt 0:01:15]} 5. dxc3 {[%emt 0:00:12]} g6 {[%emt 0:06:03]} 6. Bc4 {[%emt 0:13:46]} Bg7 {[%emt 0:09:39]} 7. Bf4 {[%emt 0:15:59]} O-O {[%emt 0:03:17]} 8. Qd2 {[%emt 0:03:02]} Bg4 {[%emt 0:00:24]} 9. O-O-O {[%emt 0:01:46]} Nc6 {[%emt 0:00:14]} 10. exd6 {[%emt 0:01:41]} cxd6 {[%emt 0:00:30]} 11. Qe3 {[%emt 0:01:20]} Qc7 {[%emt 0:01:45]} 12. Bd5 {[%emt 0:05:08]} Ne5 {[%emt 0:10:13]} 13. Bxe5 {[%emt 0:03:20]} Bxe5 {[%emt 0:02:36]} 14. Nxe5 {[%emt 0:01:06]} Bxd1 {[%emt 0:16:39]} 15. Nxf7 {[%emt 0:01:31]} Bh5 {[%emt 0:22:31]} 16. Nh6+ {[%emt 0:07:38]} Kg7 {[%emt 0:00:25]} 17. g4 {[%emt 0:00:13]} Qc5 {[%emt 0:01:49]} 18. Qxe7+ {[%emt 0:00:45]} Kxh6 {[%emt 0:00:08]} 19. g5# {[%emt 0:00:30]} 1-0

[Event "36th Balaton Open A 2018"]
[Site "Balatonlelle"]
[Date "2018.06.13"]
[Round "2.1"]
[White "Nagy, Daniel"]
[Black "Metaxasz, Vaszilisz"]
[Result "1-0"]
[ECO "A45"]
[WhiteElo "2312"]
[BlackElo "2047"]
[Annotator "ChessBase"]
[PlyCount "55"]
[EventDate "2018.06.12"]
[EventType "swiss"]
[EventCountry "HUN"]
[SourceTitle "playchess.com"]
[Source "ChessBase"]
[SourceQuality "1"]
[TimeControl "40/5400+30:1800+30"]

1. d4 {[%emt 0:00:03]} Nf6 {[%emt 0:03:37]} 2. Bg5 {[%emt 0:00:07]} Ne4 {[%emt 0:02:25]} 3. Bf4 {[%emt 0:00:07]} c5 {[%emt 0:01:04]} 4. f3 {[%emt 0:00:07]} Qa5+ {[%emt 0:04:30]} 5. c3 {[%emt 0:00:18]} Nf6 {[%emt 0:03:04]} 6. Nd2 {[%emt 0:01:19]} cxd4 {[%emt 0:01:16]} 7. Nb3 {[%emt 0:00:07]} Qd8 {[%emt 0:04:38]} 8. cxd4 {[%emt 0:02:29]} d5 {[%emt 0:02:02]} 9. e3 {[%emt 0:01:02]} e6 {[%emt 0:02:22]} 10. Ne2 {[%emt 0:03:02]} Nc6 {[%emt 0:11:15]} 11. g4 {[%emt 0:08:24]} Bd6 {[%emt 0:01:23]} 12. h4 {[%emt 0:09:50]} h6 {[%emt 0:11:58]} 13. Qd2 {[%emt 0:15:07]} e5 {[%emt 0:01:55]} 14. dxe5 {[%emt 0:00:56]} Bxe5 {[%emt 0:01:13]} 15. O-O-O {[%emt 0:10:37]} Qe7 {[%emt 0:17:13]} 16. Kb1 {[%emt 0:15:39]} Bd7 {[%emt 0:06:12]} 17. Ned4 {[%emt 0:11:23]} O-O-O {[%emt 0:02:07]} 18. Bd3 {[%emt 0:04:03]} Kb8 {[%emt 0:04:15]} 19. Nxc6+ {[%emt 0:04:44]} Bxc6 {[%emt 0:00:08]} 20. Nd4 {[%emt 0:00:21]} Bd7 {[%emt 0:00:54]} 21. Rhe1 {[%emt 0:02:49]} a6 {[%emt 0:04:02]} 22. Qa5 {[%emt 0:03:16]} Qd6 {[%emt 0:03:26]} 23. Bxe5 {[%emt 0:02:20]} Qxe5 {[%emt 0:00:02]} 24. Bxa6 {[%emt 0:00:27]} bxa6 {[%emt 0:00:36]} 25. Qb6+ {[%emt 0:00:05]} Ka8 {[%emt 0:00:14]} 26. Qxa6+ {[%emt 0:00:03]} Kb8 {[%emt 0:00:07]} 27. Qb6+ {[%emt 0:00:20]} Ka8 {[%emt 0:00:24]} 28. Rd3 {[%emt 0:00:21]} 1-0

[Event "36th Balaton Open A 2018"]
[Site "Balatonlelle"]
[Date "2018.06.13"]
[Round "2.2"]
[White "Atkins, Rita"]
[Black "Suta, Andraz"]
[Result "1-0"]
[ECO "D00"]
[WhiteElo "2071"]
[BlackElo "2239"]
[Annotator "ChessBase"]
[PlyCount "89"]
[EventDate "2018.06.12"]
[EventType "swiss"]
[EventCountry "HUN"]
[SourceTitle "playchess.com"]
[Source "ChessBase"]
[SourceQuality "1"]
[TimeControl "40/5400+30:1800+30"]

1. d4 {[%emt 0:00:07]} Nf6 {[%emt 0:00:38]} 2. Bg5 {[%emt 0:00:18]} d5 {[%emt 0:00:59]} 3. e3 {[%emt 0:00:21]} c5 {[%emt 0:00:50]} 4. Bxf6 {[%emt 0:00:59]} gxf6 {[%emt 0:00:39]} 5. dxc5 {[%emt 0:00:23]} Nc6 {[%emt 0:01:51]} 6. Nf3 {[%emt 0:06:26]} e6 {[%emt 0:07:24]} 7. Nc3 {[%emt 0:11:57]} Bxc5 {[%emt 0:08:00]} 8. Be2 {[%emt 0:10:48]} f5 {[%emt 0:35:19]} 9. a3 {[%emt 0:05:46]} Bd7 {[%emt 0:05:30]} 10. b4 {[%emt 0:11:15]} Be7 {[%emt 0:04:02]} 11. O-O {[%emt 0:03:50]} Bf6 {[%emt 0:02:08]} 12. Qd2 {[%emt 0:00:50]} O-O {[%emt 0:01:15]} 13. Rad1 {[%emt 0:01:44]} Qe7 {[%emt 0:07:39]} 14. Nb5 {[%emt 0:05:41]} Rfd8 {[%emt 0:03:43]} 15. Nbd4 {[%emt 0:03:44]} Rac8 {[%emt 0:00:14]} 16. b5 {[%emt 0:02:02]} Ne5 {[%emt 0:08:17]} 17. Nxe5 {[%emt 0:00:11]} Bxe5 {[%emt 0:00:01]} 18. f4 {[%emt 0:00:21]} Bf6 {[%emt 0:00:48]} 19. Bd3 {[%emt 0:00:32]} Kh8 {[%emt 0:01:14]} 20. Kh1 {[%emt 0:01:50]} Rg8 {[%emt 0:01:51]} 21. a4 {[%emt 0:04:55]} Rg6 {[%emt 0:02:10]} 22. Rg1 {[%emt 0:09:05]} Rcg8 {[%emt 0:00:31]} 23. c4 {[%emt 0:01:10]} Rh6 {[%emt 0:01:02]} 24. h3 {[%emt 0:03:57]} Bxd4 {[%emt 0:03:51]} 25. exd4 {[%emt 0:00:06]} Rg3 {[%emt 0:01:27]} 26. Bf1 {[%emt 0:03:23]} dxc4 {[%emt 0:00:45]} 27. d5 {[%emt 0:00:16]} exd5 {[%emt 0:00:32]} 28. Qxd5 {[%emt 0:00:19]} Be6 {[%emt 0:00:36]} 29. Qd4+ {[%emt 0:01:53]} Qf6 {[%emt 0:00:07]} 30. Qxa7 {[%emt 0:00:50]} Rhg6 {[%emt 0:00:38]} 31. Qxb7 {[%emt 0:02:11]} Qh4 {[%emt 0:00:26]} 32. Qb8+ {[%emt 0:01:00]} Kg7 {[%emt 0:00:09]} 33. Qe5+ {[%emt 0:02:09]} Kh6 {[%emt 0:00:07]} 34. b6 {[%emt 0:01:17]} Qh5 {[%emt 0:00:32]} 35. Qe2 {[%emt 0:02:55]} Qh4 {[%emt 0:01:16]} 36. a5 {[%emt 0:01:50]} Bc8 {[%emt 0:00:11]} 37. Qe8 {[%emt 0:01:10]} Bb7 {[%emt 0:00:46]} 38. Qf8+ {[%emt 0:00:07]} Kh5 {[%emt 0:01:22]} 39. Be2+ {[%emt 0:00:14]} Bf3 {[%emt 0:00:06]} 40. Bxf3+ {[%emt 0:00:00]} Rxf3 {[%emt 0:00:14]} 41. g4+ {[%emt 0:03:24]} Rxg4 {[%emt 0:13:01]} 42. Qxf7+ {[%emt 0:01:24]} Kh6 {[%emt 0:01:02]} 43. Rd6+ {[%emt 0:00:20]} Rg6 {[%emt 0:00:12]} 44. Rdxg6+ {[%emt 0:00:24]} hxg6 {[%emt 0:00:15]} 45. Qxg6# {[%emt 0:00:28]} 1-0

[Event "36th Balaton Open A 2018"]
[Site "Balatonlelle"]
[Date "2018.06.13"]
[Round "2.3"]
[White "Kincs, Imre"]
[Black "Trajber, Csaba Dr"]
[Result "1-0"]
[ECO "D02"]
[WhiteElo "2210"]
[BlackElo "2029"]
[Annotator "ChessBase"]
[PlyCount "86"]
[EventDate "2018.06.12"]
[EventType "swiss"]
[EventCountry "HUN"]
[SourceTitle "playchess.com"]
[Source "ChessBase"]
[SourceQuality "1"]
[TimeControl "40/5400+30:1800+30"]

1. d4 {[%emt 0:00:03]} Nf6 {[%emt 0:11:19]} 2. Nf3 {[%emt 0:00:47]} e6 {[%emt 0:00:26]} 3. Bf4 {[%emt 0:01:24]} Be7 {[%emt 0:02:19]} 4. e3 {[%emt 0:00:17]} b6 {[%emt 0:01:19]} 5. Bd3 {[%emt 0:00:14]} Bb7 {[%emt 0:01:23]} 6. Nbd2 {[%emt 0:00:08]} d5 {[%emt 0:01:06]} 7. c3 {[%emt 0:01:23]} Nbd7 {[%emt 0:00:35]} 8. a4 {[%emt 0:01:46]} a5 {[%emt 0:05:38]} 9. Qe2 {[%emt 0:00:35]} Ne4 {[%emt 0:01:42]} 10. h4 {[%emt 0:00:27]} Ndf6 {[%emt 0:01:48]} 11. Ne5 {[%emt 0:03:31]} Rc8 {[%emt 0:06:10]} 12. Ndf3 {[%emt 0:01:41]} Nd6 {[%emt 0:07:29]} 13. Ng5 {[%emt 0:07:10]} Nfe4 {[%emt 0:21:23]} 14. Bb5+ {[%emt 0:17:52]} c6 {[%emt 0:00:54]} 15. Nxe4 {[%emt 0:01:10]} Nxe4 {[%emt 0:01:19]} 16. Bd3 {[%emt 0:00:14]} O-O {[%emt 0:11:10]} 17. Nf3 {[%emt 0:03:41]} f6 {[%emt 0:04:43]} 18. g4 {[%emt 0:05:41]} Bd6 {[%emt 0:01:59]} 19. Bxd6 {[%emt 0:06:31]} Qxd6 {[%emt 0:01:20]} 20. Bxe4 {[%emt 0:00:06]} dxe4 {[%emt 0:00:12]} 21. Nd2 {[%emt 0:00:02]} c5 {[%emt 0:00:44]} 22. Rh3 {[%emt 0:06:09]} e5 {[%emt 0:06:11]} 23. dxe5 {[%emt 0:01:52]} Qxe5 {[%emt 0:00:49]} 24. Qb5 {[%emt 0:00:17]} Qe6 {[%emt 0:00:18]} 25. Rg3 {[%emt 0:00:17]} Ra8 {[%emt 0:00:25]} 26. O-O-O {[%emt 0:00:21]} Ba6 {[%emt 0:00:44]} 27. Qb3 {[%emt 0:00:02]} c4 {[%emt 0:01:42]} 28. Qc2 {[%emt 0:01:15]} Rfe8 {[%emt 0:00:07]} 29. Nf1 {[%emt 0:00:14]} b5 {[%emt 0:00:48]} 30. axb5 {[%emt 0:00:09]} Bxb5 {[%emt 0:00:06]} 31. Rd4 {[%emt 0:00:08]} Bc6 {[%emt 0:03:49]} 32. Nd2 {[%emt 0:00:11]} Bd5 {[%emt 0:00:11]} 33. Qa4 {[%emt 0:01:08]} Rac8 {[%emt 0:02:05]} 34. Qxa5 {[%emt 0:05:22]} Red8 {[%emt 0:01:54]} 35. Rg1 {[%emt 0:06:29]} Ra8 {[%emt 0:00:18]} 36. Qc7 {[%emt 0:00:30]} Rdc8 {[%emt 0:01:07]} 37. Qf4 {[%emt 0:00:00]} Ra2 {[%emt 0:01:24]} 38. Qf5 {[%emt 0:01:51]} Rb8 {[%emt 0:01:57]} 39. Qxd5 {[%emt 0:00:13]} Qxd5 {[%emt 0:00:12]} 40. Rxd5 {[%emt 0:00:00]} Rbxb2 {[%emt 0:00:07]} 41. Nxe4 {[%emt 0:07:09]} Rc2+ {[%emt 0:06:41]} 42. Kd1 {[%emt 0:00:30]} Rcb2 {[%emt 0:00:30]} 43. Kc1 {[%emt 0:06:53]} Rc2+ {[%emt 0:00:08]} 1-0

[Event "36th Balaton Open A 2018"]
[Site "Balatonlelle"]
[Date "2018.06.13"]
[Round "2.4"]
[White "Vukovic, Ivo"]
[Black "Ronce, Nathan"]
[Result "1/2-1/2"]
[ECO "E62"]
[WhiteElo "2031"]
[BlackElo "2210"]
[Annotator "ChessBase"]
[PlyCount "102"]
[EventDate "2018.06.12"]
[EventType "swiss"]
[EventCountry "HUN"]
[SourceTitle "playchess.com"]
[Source "ChessBase"]
[SourceQuality "1"]
[TimeControl "40/5400+30:1800+30"]

1. Nf3 {[%emt 0:00:06]} g6 {[%emt 0:00:42]} 2. d4 {[%emt 0:03:14]} Bg7 {[%emt 0:00:50]} 3. g3 {[%emt 0:00:28]} Nf6 {[%emt 0:00:13]} 4. Bg2 {[%emt 0:00:06]} O-O {[%emt 0:00:05]} 5. O-O {[%emt 0:00:08]} d6 {[%emt 0:01:06]} 6. c4 {[%emt 0:00:22]} c6 {[%emt 0:00:05]} 7. Nc3 {[%emt 0:00:29]} Qa5 {[%emt 0:00:04]} 8. Re1 {[%emt 0:04:13]} Qh5 {[%emt 0:04:59]} 9. Nd2 {[%emt 0:25:40]} Bh3 {[%emt 0:05:25]} 10. Nf1 {[%emt 0:03:10]} Nbd7 {[%emt 0:05:03]} 11. e3 {[%emt 0:02:21]} Qxd1 {[%emt 0:02:03]} 12. Rxd1 {[%emt 0:00:26]} Bxg2 {[%emt 0:00:06]} 13. Kxg2 {[%emt 0:00:13]} a6 {[%emt 0:03:15]} 14. a4 {[%emt 0:05:41]} c5 {[%emt 0:02:29]} 15. Rb1 {[%emt 0:04:28]} Rfc8 {[%emt 0:12:30]} 16. b3 {[%emt 0:06:53]} Rcb8 {[%emt 0:07:13]} 17. Bb2 {[%emt 0:05:03]} Kf8 {[%emt 0:02:11]} 18. Nd2 {[%emt 0:03:06]} Rc8 {[%emt 0:04:38]} 19. Nf3 {[%emt 0:02:38]} Rab8 {[%emt 0:01:01]} 20. Ba1 {[%emt 0:03:06]} b6 {[%emt 0:08:40]} 21. Nd2 {[%emt 0:04:01]} Rb7 {[%emt 0:04:18]} 22. h3 {[%emt 0:01:47]} Ne8 {[%emt 0:03:39]} 23. Nf3 {[%emt 0:04:52]} Nc7 {[%emt 0:00:25]} 24. Rdc1 {[%emt 0:03:31]} Rcb8 {[%emt 0:03:34]} 25. b4 {[%emt 0:02:16]} cxd4 {[%emt 0:13:21]} 26. exd4 {[%emt 0:01:33]} Rc8 {[%emt 0:02:33]} 27. Ne2 {[%emt 0:01:23]} e6 {[%emt 0:02:07]} 28. Nd2 {[%emt 0:03:03]} Ne8 {[%emt 0:00:24]} 29. f4 {[%emt 0:01:40]} Rbc7 {[%emt 0:00:20]} 30. Kf3 {[%emt 0:00:37]} e5 {[%emt 0:06:15]} 31. a5 {[%emt 0:02:54]} exd4 {[%emt 0:02:17]} 32. axb6 {[%emt 0:01:39]} Nxb6 {[%emt 0:00:05]} 33. c5 {[%emt 0:00:08]} Nd7 {[%emt 0:01:11]} 34. cxd6 {[%emt 0:00:23]} Rxc1 {[%emt 0:00:10]} 35. Rxc1 {[%emt 0:00:11]} Rxc1 {[%emt 0:00:05]} 36. Nxc1 {[%emt 0:00:05]} Nxd6 {[%emt 0:00:09]} 37. Ndb3 {[%emt 0:00:23]} Nb5 {[%emt 0:00:36]} 38. Ke4 {[%emt 0:00:22]} Nf6+ {[%emt 0:04:39]} 39. Kd3 {[%emt 0:00:48]} Nd5 {[%emt 0:00:20]} 40. Bxd4 {[%emt 0:00:00]} Nxb4+ {[%emt 0:00:32]} 41. Kc4 {[%emt 0:00:42]} Nxd4 {[%emt 0:04:22]} 42. Kxb4 {[%emt 0:02:07]} Ke7 {[%emt 0:04:49]} 43. Nc5 {[%emt 0:00:29]} h5 {[%emt 0:07:02]} 44. Nxa6 {[%emt 0:00:46]} Kd6 {[%emt 0:05:07]} 45. Kc4 {[%emt 0:00:41]} Ne6 {[%emt 0:01:13]} 46. Ne2 {[%emt 0:00:33]} Bh6 {[%emt 0:01:09]} 47. h4 {[%emt 0:00:34]} Bg7 {[%emt 0:02:10]} 48. Kd3 {[%emt 0:00:29]} Bf8 {[%emt 0:02:04]} 49. Nb4 {[%emt 0:00:35]} Nc5+ {[%emt 0:01:24]} 50. Ke3 {[%emt 0:00:12]} Bg7 {[%emt 0:00:26]} 51. Nc2 {[%emt 0:00:40]} Ne6 {[%emt 0:01:11]} 1/2-1/2

[Event "36th Balaton Open A 2018"]
[Site "Balatonlelle"]
[Date "2018.06.13"]
[Round "2.5"]
[White "Forgacs, Jozsef"]
[Black "Gunyecz, Zoltan dr"]
[Result "1-0"]
[ECO "D85"]
[WhiteElo "2199"]
[BlackElo "1987"]
[Annotator "ChessBase"]
[PlyCount "53"]
[EventDate "2018.06.12"]
[EventType "swiss"]
[EventCountry "HUN"]
[SourceTitle "playchess.com"]
[Source "ChessBase"]
[SourceQuality "1"]
[TimeControl "40/5400+30:1800+30"]

1. d4 {[%emt 0:00:12]} Nf6 {[%emt 0:02:24]} 2. c4 {[%emt 0:00:13]} g6 {[%emt 0:02:14]} 3. Nc3 {[%emt 0:00:08]} d5 {[%emt 0:00:01]} 4. cxd5 {[%emt 0:00:16]} Nxd5 {[%emt 0:00:08]} 5. e4 {[%emt 0:00:16]} Nxc3 {[%emt 0:00:06]} 6. bxc3 {[%emt 0:00:06]} Bg7 {[%emt 0:00:03]} 7. Nf3 {[%emt 0:00:10]} O-O {[%emt 0:00:02]} 8. Be3 {[%emt 0:00:12]} c5 {[%emt 0:00:16]} 9. Be2 {[%emt 0:00:11]} Nc6 {[%emt 0:01:35]} 10. O-O {[%emt 0:00:38]} cxd4 {[%emt 0:01:28]} 11. cxd4 {[%emt 0:00:09]} Bg4 {[%emt 0:35:01]} 12. d5 {[%emt 0:00:40]} Na5 {[%emt 0:00:35]} 13. Rc1 {[%emt 0:02:31]} a6 {[%emt 0:07:55]} 14. Bf4 {[%emt 0:13:42]} Rc8 {[%emt 0:05:15]} 15. Rxc8 {[%emt 0:12:00]} Qxc8 {[%emt 0:04:39]} 16. Qa4 {[%emt 0:00:37]} b6 {[%emt 0:05:46]} 17. Rc1 {[%emt 0:02:26]} Qa8 {[%emt 0:01:59]} 18. h3 {[%emt 0:10:03]} Bxf3 {[%emt 0:06:16]} 19. Bxf3 {[%emt 0:00:37]} Rc8 {[%emt 0:00:34]} 20. Qd7 {[%emt 0:00:25]} Rxc1+ {[%emt 0:01:58]} 21. Bxc1 {[%emt 0:04:57]} Bf8 {[%emt 0:01:11]} 22. Qc7 {[%emt 0:11:05]} Qb7 {[%emt 0:02:56]} 23. Qd8 {[%emt 0:01:00]} Kg7 {[%emt 0:00:16]} 24. Bh6+ {[%emt 0:06:11]} Kxh6 {[%emt 0:00:08]} 25. Qxf8+ {[%emt 0:00:05]} Kg5 {[%emt 0:00:26]} 26. h4+ {[%emt 0:00:16]} Kf4 {[%emt 0:02:11]} 27. Qxf7+ {[%emt 0:00:30]} 1-0

[Event "36th Balaton Open A 2018"]
[Site "Balatonlelle"]
[Date "2018.06.13"]
[Round "2.6"]
[White "Boguszlavszkij, Jevgenyij"]
[Black "Ananya Rishi Gupta"]
[Result "1-0"]
[ECO "A07"]
[WhiteElo "2170"]
[BlackElo "1968"]
[Annotator "ChessBase"]
[PlyCount "89"]
[EventDate "2018.06.12"]
[EventType "swiss"]
[EventCountry "HUN"]
[SourceTitle "playchess.com"]
[Source "ChessBase"]
[SourceQuality "1"]
[TimeControl "40/5400+30:1800+30"]

1. g3 {[%emt 0:04:53]} d5 {[%emt 0:01:08]} 2. Bg2 {[%emt 0:00:22]} Nf6 {[%emt 0:00:34]} 3. Nf3 {[%emt 0:00:53]} Bf5 {[%emt 0:01:36]} 4. d3 {[%emt 0:00:39]} Nbd7 {[%emt 0:02:03]} 5. Nh4 {[%emt 0:01:28]} Bg6 {[%emt 0:00:35]} 6. Nc3 {[%emt 0:03:25]} c6 {[%emt 0:02:14]} 7. e4 {[%emt 0:02:41]} dxe4 {[%emt 0:02:40]} 8. Nxg6 {[%emt 0:00:13]} hxg6 {[%emt 0:00:28]} 9. dxe4 {[%emt 0:04:09]} e5 {[%emt 0:02:17]} 10. Qe2 {[%emt 0:00:35]} Bc5 {[%emt 0:04:34]} 11. Bd2 {[%emt 0:00:38]} Qe7 {[%emt 0:01:46]} 12. O-O-O {[%emt 0:01:34]} O-O-O {[%emt 0:01:11]} 13. h4 {[%emt 0:00:29]} Kb8 {[%emt 0:02:23]} 14. f4 {[%emt 0:00:40]} Bd6 {[%emt 0:04:46]} 15. Be3 {[%emt 0:02:00]} Nc5 {[%emt 0:07:22]} 16. Rxd6 {[%emt 0:02:17]} Qxd6 {[%emt 0:04:05]} 17. fxe5 {[%emt 0:01:34]} Qe7 {[%emt 0:00:11]} 18. exf6 {[%emt 0:00:22]} gxf6 {[%emt 0:00:05]} 19. Qf2 {[%emt 0:02:05]} b6 {[%emt 0:02:00]} 20. e5 {[%emt 0:02:05]} fxe5 {[%emt 0:05:27]} 21. Bg5 {[%emt 0:00:33]} f6 {[%emt 0:03:03]} 22. Qxf6 {[%emt 0:01:19]} Qd6 {[%emt 0:02:38]} 23. Qxd6+ {[%emt 0:04:42]} Rxd6 {[%emt 0:00:07]} 24. Ne4 {[%emt 0:00:36]} Nxe4 {[%emt 0:00:35]} 25. Bxe4 {[%emt 0:00:07]} Rg8 {[%emt 0:02:55]} 26. Be3 {[%emt 0:01:09]} Kc7 {[%emt 0:01:07]} 27. g4 {[%emt 0:00:43]} c5 {[%emt 0:11:38]} 28. Rf1 {[%emt 0:03:22]} Rh8 {[%emt 0:01:58]} 29. Rf7+ {[%emt 0:00:30]} Rd7 {[%emt 0:00:14]} 30. Rxd7+ {[%emt 0:00:26]} Kxd7 {[%emt 0:00:13]} 31. Bg5 {[%emt 0:01:26]} Rg8 {[%emt 0:00:22]} 32. Kd2 {[%emt 0:00:23]} Kd6 {[%emt 0:10:11]} 33. c4 {[%emt 0:04:21]} Rg7 {[%emt 0:02:12]} 34. Ke2 {[%emt 0:00:28]} Rg8 {[%emt 0:02:41]} 35. Be3 {[%emt 0:00:12]} Rh8 {[%emt 0:01:30]} 36. Bf2 {[%emt 0:00:27]} Rg8 {[%emt 0:00:31]} 37. Bd5 {[%emt 0:00:31]} Rf8 {[%emt 0:01:19]} 38. Bg3 {[%emt 0:00:06]} b5 {[%emt 0:02:21]} 39. b3 {[%emt 0:01:08]} bxc4 {[%emt 0:00:30]} 40. Bxc4 {[%emt 0:00:00]} Ke7 {[%emt 0:03:48]} 41. Bxe5 {[%emt 0:01:22]} Rd8 {[%emt 0:01:13]} 42. h5 {[%emt 0:01:02]} gxh5 {[%emt 0:00:36]} 43. gxh5 {[%emt 0:00:08]} Kf8 {[%emt 0:00:45]} 44. Ke3 {[%emt 0:00:25]} Rd7 {[%emt 0:01:38]} 45. h6 {[%emt 0:00:10]} 1-0

[Event "36th Balaton Open A 2018"]
[Site "Balatonlelle"]
[Date "2018.06.13"]
[Round "2.7"]
[White "Psaila, Clarence"]
[Black "Gaal, Ede"]
[Result "0-1"]
[ECO "E60"]
[WhiteElo "1983"]
[BlackElo "2141"]
[Annotator "ChessBase"]
[PlyCount "122"]
[EventDate "2018.06.12"]
[EventType "swiss"]
[EventCountry "HUN"]
[SourceTitle "playchess.com"]
[Source "ChessBase"]
[SourceQuality "1"]
[TimeControl "40/5400+30:1800+30"]

1. Nf3 {[%emt 0:00:06]} Nf6 {[%emt 0:00:40]} 2. c4 {[%emt 0:00:08]} g6 {[%emt 0:00:03]} 3. g3 {[%emt 0:00:10]} Bg7 {[%emt 0:00:04]} 4. Bg2 {[%emt 0:00:05]} O-O {[%emt 0:00:06]} 5. O-O {[%emt 0:00:06]} d6 {[%emt 0:00:06]} 6. d4 {[%emt 0:00:07]} c5 {[%emt 0:00:22]} 7. b3 {[%emt 0:00:16]} Nc6 {[%emt 0:02:34]} 8. Bb2 {[%emt 0:00:09]} Bg4 {[%emt 0:02:51]} 9. Nbd2 {[%emt 0:07:20]} Qa5 {[%emt 0:15:17]} 10. h3 {[%emt 0:07:11]} Bf5 {[%emt 0:02:56]} 11. g4 {[%emt 0:09:40]} Bd7 {[%emt 0:02:09]} 12. d5 {[%emt 0:02:07]} Nd8 {[%emt 0:03:06]} 13. a4 {[%emt 0:07:04]} e5 {[%emt 0:02:47]} 14. Qc2 {[%emt 0:03:46]} Ne8 {[%emt 0:05:30]} 15. e4 {[%emt 0:11:45]} f6 {[%emt 0:02:22]} 16. Nb1 {[%emt 0:00:51]} Nf7 {[%emt 0:01:50]} 17. Nc3 {[%emt 0:00:24]} Bh6 {[%emt 0:01:03]} 18. Ne2 {[%emt 0:03:40]} Ng7 {[%emt 0:01:23]} 19. Ne1 {[%emt 0:01:05]} Rae8 {[%emt 0:01:19]} 20. f4 {[%emt 0:00:39]} exf4 {[%emt 0:00:30]} 21. Bxf6 {[%emt 0:00:30]} g5 {[%emt 0:03:25]} 22. Nf3 {[%emt 0:14:59]} a6 {[%emt 0:05:14]} 23. Bc3 {[%emt 0:03:34]} Qc7 {[%emt 0:02:52]} 24. Rae1 {[%emt 0:03:11]} b5 {[%emt 0:04:33]} 25. axb5 {[%emt 0:02:04]} axb5 {[%emt 0:00:08]} 26. Nc1 {[%emt 0:00:28]} Ra8 {[%emt 0:04:41]} 27. e5 {[%emt 0:01:15]} dxe5 {[%emt 0:01:40]} 28. Nxe5 {[%emt 0:00:50]} bxc4 {[%emt 0:02:09]} 29. d6 {[%emt 0:06:12]} Nxd6 {[%emt 0:00:19]} 30. Nxd7 {[%emt 0:00:24]} Qxd7 {[%emt 0:00:55]} 31. Bd5+ {[%emt 0:00:42]} Nf7 {[%emt 0:01:06]} 32. Bxa8 {[%emt 0:00:19]} Rxa8 {[%emt 0:00:21]} 33. bxc4 {[%emt 0:01:07]} Ra3 {[%emt 0:02:39]} 34. Qb2 {[%emt 0:02:55]} Ra8 {[%emt 0:02:33]} 35. Qb6 {[%emt 0:02:01]} Rc8 {[%emt 0:03:29]} 36. Re4 {[%emt 0:01:42]} Nd6 {[%emt 0:03:23]} 37. Rd1 {[%emt 0:01:30]} Nge8 {[%emt 0:00:57]} 38. Be5 {[%emt 0:02:18]} Bf8 {[%emt 0:00:41]} 39. Re2 {[%emt 0:03:24]} Qc6 {[%emt 0:01:13]} 40. Qxc6 {[%emt 0:00:00]} Rxc6 {[%emt 0:00:02]} 41. Bxd6 {[%emt 0:03:55]} Nxd6 {[%emt 0:00:47]} 42. Rd5 {[%emt 0:09:00]} h6 {[%emt 0:02:10]} 43. Rc2 {[%emt 0:04:28]} Ne4 {[%emt 0:07:28]} 44. Kg2 {[%emt 0:00:40]} Ra6 {[%emt 0:00:31]} 45. Ra2 {[%emt 0:02:50]} Rf6 {[%emt 0:01:39]} 46. Rf5 {[%emt 0:01:34]} Rxf5 {[%emt 0:00:23]} 47. gxf5 {[%emt 0:00:02]} Nd6 {[%emt 0:00:14]} 48. Nd3 {[%emt 0:02:05]} Nxc4 {[%emt 0:00:52]} 49. Ra7 {[%emt 0:02:40]} Ne3+ {[%emt 0:00:37]} 50. Kf3 {[%emt 0:00:08]} Nxf5 {[%emt 0:01:15]} 51. Rc7 {[%emt 0:01:43]} Nd4+ {[%emt 0:02:06]} 52. Kg4 {[%emt 0:01:19]} Ne6 {[%emt 0:00:53]} 53. Rc6 {[%emt 0:00:47]} Kf7 {[%emt 0:01:37]} 54. Ne5+ {[%emt 0:02:00]} Ke7 {[%emt 0:00:14]} 55. Ng6+ {[%emt 0:00:30]} Kd7 {[%emt 0:00:11]} 56. Ne5+ {[%emt 0:00:44]} Ke7 {[%emt 0:00:15]} 57. Ng6+ {[%emt 0:00:05]} Kd7 {[%emt 0:00:05]} 58. Ne5+ {[%emt 0:00:30]} Ke7 {[%emt 0:00:30]} 59. Ng6+ {[%emt 0:00:30]} Kd7 {[%emt 0:00:30]} 60. Rxe6 {[%emt 0:00:30]} Kxe6 {[%emt 0:00:30]} 61. Nxf8+ {[%emt 0:00:30]} Kd5 {[%emt 0:00:30]} 0-1